[Event "Titled Tuesday Blitz May 9 Late 2023"]
[White "Papasimakopoulos, Alexandros"]
[Black "Haydon, David L"]
[WhiteFideId "4244125"]
[BlackFideId "415405"]
[WhiteElo "2359"]
[BlackElo "2326"]
[Result "1-0"]
[Round "07"]
[TimeControl "180+2"]
[Date "2023.05.09"]
[WhiteClock "0:00:07"]
[BlackClock "0:00:12"]

1. d4 {[%clk 0:03:00]}  c6 {[%clk 0:02:51]} 2. c4 {[%clk 0:03:00]}  d5 {[%clk 0:02:51]} 3. cxd5 {[%clk 0:03:01]}  cxd5 {[%clk 0:02:51]} 4. Bf4 {[%clk 0:03:02]}  Nc6 {[%clk 0:02:48]} 5. e3 {[%clk 0:03:02]}  Bf5 {[%clk 0:02:46]} 6. Nc3 {[%clk 0:03:01]}  e6 {[%clk 0:02:45]} 7. Qb3 {[%clk 0:03:01]}  Qd7 {[%clk 0:02:45]} 8. Nf3 {[%clk 0:02:59]}  f6 {[%clk 0:02:41]} 9. Be2 {[%clk 0:02:54]}  h5 {[%clk 0:02:39]} 10. h4 {[%clk 0:02:40]}  Nge7 {[%clk 0:02:37]} 11. Nb5 {[%clk 0:02:35]}  Ng6 {[%clk 0:02:34]} 12. Nc7+ {[%clk 0:02:33]}  Kf7 {[%clk 0:02:34]} 13. Nxa8 {[%clk 0:02:33]}  Nxf4 {[%clk 0:02:34]} 14. exf4 {[%clk 0:02:34]}  Bd6 {[%clk 0:02:33]} 15. O-O {[%clk 0:02:26]}  Bxf4 {[%clk 0:02:31]} 16. Nb6 {[%clk 0:02:25]}  axb6 {[%clk 0:02:29]} 17. Qxb6 {[%clk 0:02:26]}  g5 {[%clk 0:02:28]} 18. hxg5 {[%clk 0:02:21]}  fxg5 {[%clk 0:02:23]} 19. Bb5 {[%clk 0:02:18]}  g4 {[%clk 0:02:18]} 20. Ne5+ {[%clk 0:02:17]}  Bxe5 {[%clk 0:02:14]} 21. dxe5 {[%clk 0:02:17]}  h4 {[%clk 0:02:08]} 22. Rac1 {[%clk 0:02:17]}  Rc8 {[%clk 0:01:58]} 23. a4 {[%clk 0:02:13]}  h3 {[%clk 0:01:56]} 24. Rfd1 {[%clk 0:01:42]}  Be4 {[%clk 0:01:48]} 25. Qe3 {[%clk 0:01:39]}  Bxg2 {[%clk 0:01:44]} 26. Qf4+ {[%clk 0:01:39]}  Ke8 {[%clk 0:01:41]} 27. Qxg4 {[%clk 0:01:32]}  Kd8 {[%clk 0:01:29]} 28. a5 {[%clk 0:01:24]}  Kc7 {[%clk 0:01:15]} 29. a6 {[%clk 0:01:24]}  Kb8 {[%clk 0:01:10]} 30. axb7 {[%clk 0:01:24]}  Qxb7 {[%clk 0:01:10]} 31. Bxc6 {[%clk 0:01:14]}  Rxc6 {[%clk 0:01:10]} 32. Qg8+ {[%clk 0:01:15]}  Ka7 {[%clk 0:01:00]} 33. Rxc6 {[%clk 0:01:10]}  Qxc6 {[%clk 0:00:58]} 34. Ra1+ {[%clk 0:01:11]}  Kb6 {[%clk 0:00:58]} 35. Qb8+ {[%clk 0:01:10]}  Qb7 {[%clk 0:00:56]} 36. Qxb7+ {[%clk 0:01:03]}  Kxb7 {[%clk 0:00:56]} 37. Rc1 {[%clk 0:01:01]}  Kb6 {[%clk 0:00:53]} 38. f4 {[%clk 0:01:01]}  Be4 {[%clk 0:00:52]} 39. Kh2 {[%clk 0:00:56]}  Bf5 {[%clk 0:00:51]} 40. Kg3 {[%clk 0:00:51]}  Kb5 {[%clk 0:00:47]} 41. Rh1 {[%clk 0:00:45]}  d4 {[%clk 0:00:46]} 42. Rc1 {[%clk 0:00:41]}  d3 {[%clk 0:00:44]} 43. Kf3 {[%clk 0:00:41]}  Kb4 {[%clk 0:00:37]} 44. Ke3 {[%clk 0:00:33]}  Kb3 {[%clk 0:00:36]} 45. Kd2 {[%clk 0:00:28]}  Be4 {[%clk 0:00:34]} 46. f5 {[%clk 0:00:17]}  Bxf5 {[%clk 0:00:28]} 47. Rc3+ {[%clk 0:00:17]}  Kxb2 {[%clk 0:00:26]} 48. Rc4 {[%clk 0:00:17]}  Kb3 {[%clk 0:00:17]} 49. Rf4 {[%clk 0:00:17]}  Ka3 {[%clk 0:00:18]} 50. Kc3 {[%clk 0:00:17]}  Ka2 {[%clk 0:00:17]} 51. Ra4+ {[%clk 0:00:14]}  Kb1 {[%clk 0:00:16]} 52. Kd2 {[%clk 0:00:13]}  Kb2 {[%clk 0:00:16]} 53. Rb4+ {[%clk 0:00:13]}  Ka3 {[%clk 0:00:17]} 54. Rf4 {[%clk 0:00:13]}  Kb2 {[%clk 0:00:17]} 55. Rb4+ {[%clk 0:00:13]}  Ka3 {[%clk 0:00:17]} 56. Rh4 {[%clk 0:00:12]}  Kb3 {[%clk 0:00:17]} 57. Rf4 {[%clk 0:00:12]}  Ka3 {[%clk 0:00:16]} 58. Kc3 {[%clk 0:00:11]}  Ka2 {[%clk 0:00:16]} 59. Rb4 {[%clk 0:00:06]}  Ka3 {[%clk 0:00:16]} 60. Rd4 {[%clk 0:00:06]}  Ka2 {[%clk 0:00:17]} 61. Rf4 {[%clk 0:00:05]}  Kb1 {[%clk 0:00:17]} 62. Ra4 {[%clk 0:00:02]}  d2 {[%clk 0:00:13]} 63. Kxd2 {[%clk 0:00:02]}  Kb2 {[%clk 0:00:14]} 64. Rf4 {[%clk 0:00:03]}  Kb3 {[%clk 0:00:14]} 65. Ke3 {[%clk 0:00:03]}  Kc3 {[%clk 0:00:13]} 66. Rxf5 {[%clk 0:00:04]}  exf5 {[%clk 0:00:12]} 67. Kf3 {[%clk 0:00:04]}  h2 {[%clk 0:00:11]} 68. Kg2 {[%clk 0:00:04]}  f4 {[%clk 0:00:11]} 69. Kxh2 {[%clk 0:00:04]}  Kd2 {[%clk 0:00:09]} 70. e6 {[%clk 0:00:04]}  f3 {[%clk 0:00:10]} 71. Kg3 {[%clk 0:00:04]}  Ke2 {[%clk 0:00:10]} 72. e7 {[%clk 0:00:04]}  f2 {[%clk 0:00:11]} 73. e8=Q+ {[%clk 0:00:05]}  Kf1 {[%clk 0:00:12]} 74. Qf7 {[%clk 0:00:06]}  Kg1 {[%clk 0:00:12]} 75. Qxf2+ {[%clk 0:00:06]}  Kh1 {[%clk 0:00:12]} 76. Qg2# {[%clk 0:00:07]} 1-0


[Site "https://www.chess.com"]

[Event "Titled Tuesday Blitz May 9 Late 2023"]
[White "Ozdemir, Serhan Berat"]
[Black "Gorshtein, Ido"]
[WhiteFideId "6374611"]
[BlackFideId "2815532"]
[WhiteElo "2015"]
[BlackElo "2415"]
[Result "0-1"]
[Round "07"]
[TimeControl "180+2"]
[Date "2023.05.09"]
[WhiteClock "0:00:00"]
[BlackClock "0:01:14"]

1. e4 {[%clk 0:03:00]}  c5 {[%clk 0:02:59]} 2. Nf3 {[%clk 0:02:57]}  Nc6 {[%clk 0:02:59]} 3. Bb5 {[%clk 0:02:56]}  e6 {[%clk 0:02:57]} 4. O-O {[%clk 0:02:53]}  Nge7 {[%clk 0:02:56]} 5. d4 {[%clk 0:02:51]}  cxd4 {[%clk 0:02:55]} 6. Nxd4 {[%clk 0:02:52]}  Ng6 {[%clk 0:02:55]} 7. Nc3 {[%clk 0:02:34]}  Qc7 {[%clk 0:02:54]} 8. Be3 {[%clk 0:02:26]}  Bd6 {[%clk 0:02:44]} 9. h3 {[%clk 0:02:08]}  Be5 {[%clk 0:02:43]} 10. Be2 {[%clk 0:01:58]}  O-O {[%clk 0:02:40]} 11. Qd2 {[%clk 0:01:53]}  a6 {[%clk 0:02:20]} 12. Rad1 {[%clk 0:01:27]}  b5 {[%clk 0:02:08]} 13. a3 {[%clk 0:01:19]}  Bb7 {[%clk 0:02:07]} 14. Nb3 {[%clk 0:01:12]}  Nf4 {[%clk 0:01:51]} 15. Bxf4 {[%clk 0:00:37]}  Bxf4 {[%clk 0:01:49]} 16. Qxd7 {[%clk 0:00:38]}  Qb6 {[%clk 0:01:49]} 17. Qd3 {[%clk 0:00:34]}  Rac8 {[%clk 0:01:38]} 18. Qf3 {[%clk 0:00:32]}  Be5 {[%clk 0:01:36]} 19. Rd3 {[%clk 0:00:21]}  Bf6 {[%clk 0:01:31]} 20. Qh5 {[%clk 0:00:07]}  Ne5 {[%clk 0:01:25]} 21. Rg3 {[%clk 0:00:07]}  g6 {[%clk 0:01:24]} 22. Qh6 {[%clk 0:00:07]}  Bg7 {[%clk 0:01:23]} 23. Qd2 {[%clk 0:00:07]}  Rfd8 {[%clk 0:01:22]} 24. Qe1 {[%clk 0:00:04]}  h5 {[%clk 0:01:16]} 25. Kh2 {[%clk 0:00:03]}  h4 {[%clk 0:01:17]} 26. Re3 {[%clk 0:00:01]}  Bh6 {[%clk 0:01:17]} 27. f4 {[%clk 0:00:01]}  Qxe3 {[%clk 0:01:16]} 28. fxe5 {[%clk 0:00:01]}  Bf4+ {[%clk 0:01:16]} 29. Kh1 {[%clk 0:00:00]}  Bg3 {[%clk 0:01:14]} 0-1


[Site "https://www.chess.com"]

[Event "Titled Tuesday Blitz May 9 Late 2023"]
[White "Rosen, Eric"]
[Black "Ozates, Tuna"]
[WhiteFideId "2032562"]
[BlackFideId "6354521"]
[WhiteElo "2331"]
[BlackElo "2151"]
[Result "1-0"]
[Round "07"]
[TimeControl "180+2"]
[Date "2023.05.09"]
[WhiteClock "0:00:06"]
[BlackClock "0:00:00"]

1. d4 {[%clk 0:02:58]}  d5 {[%clk 0:02:58]} 2. Bf4 {[%clk 0:02:57]}  c5 {[%clk 0:02:58]} 3. Nc3 {[%clk 0:02:58]}  e6 {[%clk 0:02:54]} 4. e4 {[%clk 0:02:57]}  cxd4 {[%clk 0:02:44]} 5. Qxd4 {[%clk 0:02:57]}  Nc6 {[%clk 0:02:44]} 6. Qa4 {[%clk 0:02:57]}  Bb4 {[%clk 0:02:19]} 7. O-O-O {[%clk 0:02:43]}  Bxc3 {[%clk 0:02:18]} 8. bxc3 {[%clk 0:02:44]}  Nf6 {[%clk 0:02:14]} 9. exd5 {[%clk 0:02:44]}  exd5 {[%clk 0:01:44]} 10. Re1+ {[%clk 0:02:21]}  Be6 {[%clk 0:01:44]} 11. Qa3 {[%clk 0:02:21]}  Qb6 {[%clk 0:01:32]} 12. Nf3 {[%clk 0:02:13]}  Ne4 {[%clk 0:01:20]} 13. Be3 {[%clk 0:01:39]}  Qc7 {[%clk 0:01:10]} 14. Nd4 {[%clk 0:01:39]}  Nxd4 {[%clk 0:01:05]} 15. Bxd4 {[%clk 0:01:37]}  Nd6 {[%clk 0:00:41]} 16. Bxg7 {[%clk 0:01:21]}  Rg8 {[%clk 0:00:41]} 17. Be5 {[%clk 0:01:21]}  Kd7 {[%clk 0:00:17]} 18. g3 {[%clk 0:00:37]}  a6 {[%clk 0:00:15]} 19. f4 {[%clk 0:00:32]}  Rac8 {[%clk 0:00:13]} 20. Bd3 {[%clk 0:00:26]}  Qc5 {[%clk 0:00:06]} 21. Qa4+ {[%clk 0:00:16]}  b5 {[%clk 0:00:05]} 22. Qb4 {[%clk 0:00:17]}  Nc4 {[%clk 0:00:04]} 23. Qxc5 {[%clk 0:00:14]}  Rxc5 {[%clk 0:00:04]} 24. f5 {[%clk 0:00:15]}  Nxe5 {[%clk 0:00:04]} 25. fxe6+ {[%clk 0:00:15]}  Kxe6 {[%clk 0:00:04]} 26. Bxh7 {[%clk 0:00:12]}  Rgc8 {[%clk 0:00:04]} 27. Rhf1 {[%clk 0:00:11]}  R8c7 {[%clk 0:00:01]} 28. Bg8 {[%clk 0:00:07]}  Rxc3 {[%clk 0:00:00]} 29. Re2 {[%clk 0:00:06]} 1-0


[Site "https://www.chess.com"]

[Event "Titled Tuesday Blitz May 9 Late 2023"]
[White "Kim, Sergey"]
[Black "Santos Flores, Alberto"]
[WhiteFideId "13700570"]
[BlackFideId "3601234"]
[WhiteElo "2616"]
[BlackElo "2235"]
[Result "1/2-1/2"]
[Round "07"]
[TimeControl "180+2"]
[Date "2023.05.09"]
[WhiteClock "0:01:08"]
[BlackClock "0:00:50"]

1. d4 {[%clk 0:03:00]}  d5 {[%clk 0:03:00]} 2. c4 {[%clk 0:03:00]}  c6 {[%clk 0:03:00]} 3. Nf3 {[%clk 0:02:59]}  Nf6 {[%clk 0:03:00]} 4. Qc2 {[%clk 0:02:59]}  g6 {[%clk 0:03:00]} 5. e3 {[%clk 0:03:00]}  Bf5 {[%clk 0:03:00]} 6. Bd3 {[%clk 0:03:00]}  Bxd3 {[%clk 0:02:59]} 7. Qxd3 {[%clk 0:03:00]}  Bg7 {[%clk 0:02:59]} 8. O-O {[%clk 0:03:00]}  O-O {[%clk 0:02:59]} 9. Nc3 {[%clk 0:03:01]}  Nbd7 {[%clk 0:02:58]} 10. e4 {[%clk 0:03:01]}  dxe4 {[%clk 0:02:58]} 11. Nxe4 {[%clk 0:03:01]}  Nxe4 {[%clk 0:02:57]} 12. Qxe4 {[%clk 0:03:01]}  Re8 {[%clk 0:02:54]} 13. Rd1 {[%clk 0:02:50]}  e5 {[%clk 0:02:39]} 14. dxe5 {[%clk 0:02:39]}  Qe7 {[%clk 0:02:34]} 15. Bf4 {[%clk 0:02:29]}  Nxe5 {[%clk 0:02:32]} 16. Nxe5 {[%clk 0:02:26]}  Bxe5 {[%clk 0:02:33]} 17. Bxe5 {[%clk 0:02:24]}  Qxe5 {[%clk 0:02:33]} 18. Qxe5 {[%clk 0:02:24]}  Rxe5 {[%clk 0:02:34]} 19. Rd7 {[%clk 0:02:24]}  b5 {[%clk 0:02:33]} 20. cxb5 {[%clk 0:02:13]}  cxb5 {[%clk 0:02:27]} 21. Kf1 {[%clk 0:02:08]}  Rc8 {[%clk 0:02:25]} 22. Re1 {[%clk 0:02:03]}  Rxe1+ {[%clk 0:02:20]} 23. Kxe1 {[%clk 0:02:03]}  Rc2 {[%clk 0:02:19]} 24. Rd2 {[%clk 0:02:02]}  Rc1+ {[%clk 0:02:14]} 25. Ke2 {[%clk 0:02:02]}  Kg7 {[%clk 0:02:10]} 26. Rd7 {[%clk 0:02:00]}  Rc2+ {[%clk 0:02:08]} 27. Rd2 {[%clk 0:01:59]}  Rc1 {[%clk 0:02:08]} 28. Rd7 {[%clk 0:01:59]}  a6 {[%clk 0:01:56]} 29. h4 {[%clk 0:01:49]}  Rb1 {[%clk 0:01:51]} 30. b3 {[%clk 0:01:45]}  h5 {[%clk 0:01:30]} 31. g3 {[%clk 0:01:42]}  a5 {[%clk 0:00:58]} 32. Rd5 {[%clk 0:01:30]}  a4 {[%clk 0:00:58]} 33. Rxb5 {[%clk 0:01:24]}  Rb2+ {[%clk 0:00:57]} 34. Ke3 {[%clk 0:01:22]}  a3 {[%clk 0:00:57]} 35. Ra5 {[%clk 0:01:18]}  Rxa2 {[%clk 0:00:56]} 36. b4 {[%clk 0:01:18]}  Ra1 {[%clk 0:00:56]} 37. b5 {[%clk 0:01:14]}  a2 {[%clk 0:00:55]} 38. Kf3 {[%clk 0:01:14]}  Rb1 {[%clk 0:00:50]} 39. Rxa2 {[%clk 0:01:13]}  Rxb5 {[%clk 0:00:51]} 40. Ra4 {[%clk 0:01:12]}  Rf5+ {[%clk 0:00:51]} 41. Rf4 {[%clk 0:01:11]}  Kf6 {[%clk 0:00:51]} 42. Ke3 {[%clk 0:01:09]}  Ke5 {[%clk 0:00:50]} 43. Re4+ {[%clk 0:01:08]}  Kf6 {[%clk 0:00:50]} 44. Rf4 {[%clk 0:01:08]}  Ke5 {[%clk 0:00:50]} 45. Re4+ {[%clk 0:01:08]}  Kf6 {[%clk 0:00:50]} 46. Rf4 {[%clk 0:01:08]} 1/2-1/2


[Site "https://www.chess.com"]

[Event "Titled Tuesday Blitz May 9 Late 2023"]
[White "Omranalhosani21"]
[Black "Przybylski, Wojciech"]
[BlackFideId "1117599"]
[WhiteElo "2614"]
[BlackElo "2222"]
[Result "1-0"]
[Round "07"]
[TimeControl "180+2"]
[Date "2023.05.09"]
[WhiteClock "0:00:06"]
[BlackClock "0:00:00"]

1. e4 {[%clk 0:02:59]}  e5 {[%clk 0:02:57]} 2. Nf3 {[%clk 0:02:58]}  Nc6 {[%clk 0:02:56]} 3. Bb5 {[%clk 0:02:58]}  Nf6 {[%clk 0:02:56]} 4. O-O {[%clk 0:02:57]}  Nxe4 {[%clk 0:02:55]} 5. d4 {[%clk 0:02:58]}  Nd6 {[%clk 0:02:55]} 6. Bxc6 {[%clk 0:02:55]}  bxc6 {[%clk 0:02:55]} 7. dxe5 {[%clk 0:02:42]}  Nb7 {[%clk 0:02:55]} 8. Ng5 {[%clk 0:02:26]}  d5 {[%clk 0:02:29]} 9. e6 {[%clk 0:01:49]}  Bxe6 {[%clk 0:02:24]} 10. Re1 {[%clk 0:01:47]}  Qd7 {[%clk 0:02:05]} 11. Qh5 {[%clk 0:01:33]}  g6 {[%clk 0:01:54]} 12. Qg4 {[%clk 0:01:23]}  O-O-O {[%clk 0:01:45]} 13. Nxe6 {[%clk 0:00:57]}  fxe6 {[%clk 0:01:44]} 14. Qxe6 {[%clk 0:00:57]}  Bb4 {[%clk 0:01:34]} 15. Bd2 {[%clk 0:00:47]}  Qxe6 {[%clk 0:01:19]} 16. Rxe6 {[%clk 0:00:46]}  Kd7 {[%clk 0:01:18]} 17. Re2 {[%clk 0:00:42]}  Bd6 {[%clk 0:01:12]} 18. Nc3 {[%clk 0:00:35]}  Rde8 {[%clk 0:01:07]} 19. Rae1 {[%clk 0:00:34]}  Rxe2 {[%clk 0:01:05]} 20. Rxe2 {[%clk 0:00:35]}  Nc5 {[%clk 0:01:05]} 21. Be3 {[%clk 0:00:35]}  Ne6 {[%clk 0:01:01]} 22. Rd2 {[%clk 0:00:22]}  Rb8 {[%clk 0:00:57]} 23. Nd1 {[%clk 0:00:18]}  a5 {[%clk 0:00:53]} 24. c3 {[%clk 0:00:18]}  a4 {[%clk 0:00:52]} 25. Kf1 {[%clk 0:00:16]}  Rf8 {[%clk 0:00:47]} 26. g3 {[%clk 0:00:14]}  Rb8 {[%clk 0:00:32]} 27. Ke2 {[%clk 0:00:13]}  Ng7 {[%clk 0:00:30]} 28. Kd3 {[%clk 0:00:12]}  c5 {[%clk 0:00:28]} 29. Kc2 {[%clk 0:00:12]}  Kc6 {[%clk 0:00:26]} 30. Bg5 {[%clk 0:00:11]}  Ne6 {[%clk 0:00:25]} 31. Bh6 {[%clk 0:00:10]}  c4 {[%clk 0:00:18]} 32. Ne3 {[%clk 0:00:08]}  Rb5 {[%clk 0:00:18]} 33. h4 {[%clk 0:00:05]}  Be5 {[%clk 0:00:11]} 34. Ng4 {[%clk 0:00:05]}  Bh8 {[%clk 0:00:11]} 35. Be3 {[%clk 0:00:06]}  Kd6 {[%clk 0:00:09]} 36. Nh2 {[%clk 0:00:07]}  c5 {[%clk 0:00:08]} 37. Nf3 {[%clk 0:00:07]}  Kc6 {[%clk 0:00:08]} 38. g4 {[%clk 0:00:04]}  Rb8 {[%clk 0:00:07]} 39. h5 {[%clk 0:00:04]}  Rd8 {[%clk 0:00:07]} 40. hxg6 {[%clk 0:00:05]}  hxg6 {[%clk 0:00:08]} 41. Ng5 {[%clk 0:00:05]}  Nc7 {[%clk 0:00:06]} 42. Nf7 {[%clk 0:00:05]}  Rf8 {[%clk 0:00:06]} 43. Nxh8 {[%clk 0:00:05]}  Rxh8 {[%clk 0:00:06]} 44. Re2 {[%clk 0:00:06]}  Re8 {[%clk 0:00:05]} 45. Kd2 {[%clk 0:00:05]}  Rf8 {[%clk 0:00:03]} 46. f4 {[%clk 0:00:04]}  Ne6 {[%clk 0:00:03]} 47. Rh2 {[%clk 0:00:04]}  Nxf4 {[%clk 0:00:02]} 48. Rh6 {[%clk 0:00:04]}  Ne6 {[%clk 0:00:02]} 49. Rxg6 {[%clk 0:00:04]}  Kd6 {[%clk 0:00:02]} 50. Bxc5+ {[%clk 0:00:05]}  Kxc5 {[%clk 0:00:02]} 51. Rxe6 {[%clk 0:00:05]}  Rf2+ {[%clk 0:00:02]} 52. Kc1 {[%clk 0:00:05]}  Rg2 {[%clk 0:00:02]} 53. Rg6 {[%clk 0:00:05]}  Rg1+ {[%clk 0:00:01]} 54. Kc2 {[%clk 0:00:05]}  Rg2+ {[%clk 0:00:02]} 55. Kc1 {[%clk 0:00:06]}  a3 {[%clk 0:00:02]} 56. bxa3 {[%clk 0:00:06]}  Rxa2 {[%clk 0:00:02]} 57. g5 {[%clk 0:00:06]}  Rg2 {[%clk 0:00:02]} 58. Rg7 {[%clk 0:00:05]}  d4 {[%clk 0:00:02]} 59. cxd4+ {[%clk 0:00:04]}  Kxd4 {[%clk 0:00:02]} 60. g6 {[%clk 0:00:04]}  Kc3 {[%clk 0:00:02]} 61. Kd1 {[%clk 0:00:05]}  Kb3 {[%clk 0:00:02]} 62. Rb7+ {[%clk 0:00:04]}  Kc3 {[%clk 0:00:02]} 63. g7 {[%clk 0:00:05]}  Rg1+ {[%clk 0:00:01]} 64. Ke2 {[%clk 0:00:05]}  Kc2 {[%clk 0:00:01]} 65. a4 {[%clk 0:00:04]}  c3 {[%clk 0:00:02]} 66. a5 {[%clk 0:00:05]}  Kc1 {[%clk 0:00:01]} 67. a6 {[%clk 0:00:05]}  c2 {[%clk 0:00:01]} 68. a7 {[%clk 0:00:06]}  Re1+ {[%clk 0:00:01]} 69. Kf2 {[%clk 0:00:05]}  Re8 {[%clk 0:00:01]} 70. Rb8 {[%clk 0:00:05]}  Kd2 {[%clk 0:00:01]} 71. Rxe8 {[%clk 0:00:05]}  c1=Q {[%clk 0:00:00]} 72. a8=Q {[%clk 0:00:06]} 1-0


[Site "https://www.chess.com"]

[Event "Titled Tuesday Blitz May 9 Late 2023"]
[White "Remolar Gallen, Jose"]
[Black "Bolourchifard, Farzad"]
[WhiteFideId "2215187"]
[BlackFideId "12510084"]
[WhiteElo "2223"]
[BlackElo "2317"]
[Result "1-0"]
[Round "07"]
[TimeControl "180+2"]
[Date "2023.05.09"]
[WhiteClock "0:00:04"]
[BlackClock "0:00:00"]

1. d4 {[%clk 0:03:00]}  Nf6 {[%clk 0:02:58]} 2. Nf3 {[%clk 0:03:01]}  d5 {[%clk 0:02:57]} 3. e3 {[%clk 0:02:59]}  c5 {[%clk 0:02:57]} 4. Nbd2 {[%clk 0:02:53]}  cxd4 {[%clk 0:02:55]} 5. exd4 {[%clk 0:02:53]}  Nc6 {[%clk 0:02:55]} 6. Bd3 {[%clk 0:02:48]}  g6 {[%clk 0:02:54]} 7. h3 {[%clk 0:02:47]}  Bg7 {[%clk 0:02:54]} 8. O-O {[%clk 0:02:47]}  O-O {[%clk 0:02:54]} 9. c3 {[%clk 0:02:46]}  Bf5 {[%clk 0:02:54]} 10. Qc2 {[%clk 0:02:43]}  Bxd3 {[%clk 0:02:53]} 11. Qxd3 {[%clk 0:02:44]}  Rb8 {[%clk 0:02:47]} 12. Re1 {[%clk 0:02:44]}  b5 {[%clk 0:02:45]} 13. Nb3 {[%clk 0:02:41]}  e6 {[%clk 0:02:43]} 14. Bf4 {[%clk 0:02:39]}  Rb6 {[%clk 0:02:37]} 15. a3 {[%clk 0:01:59]}  Ne4 {[%clk 0:02:32]} 16. Nfd2 {[%clk 0:01:58]}  Nxd2 {[%clk 0:02:30]} 17. Qxd2 {[%clk 0:01:56]}  a5 {[%clk 0:02:19]} 18. Nc5 {[%clk 0:01:51]}  Re8 {[%clk 0:02:09]} 19. b4 {[%clk 0:01:47]}  a4 {[%clk 0:02:05]} 20. Rad1 {[%clk 0:01:43]}  Nb8 {[%clk 0:01:23]} 21. Qd3 {[%clk 0:01:36]}  Nd7 {[%clk 0:01:18]} 22. Rb1 {[%clk 0:01:33]}  Qc8 {[%clk 0:01:03]} 23. Qg3 {[%clk 0:01:30]}  Qc6 {[%clk 0:01:02]} 24. Bc7 {[%clk 0:01:26]}  Rb7 {[%clk 0:01:01]} 25. Nxb7 {[%clk 0:01:25]}  Qxb7 {[%clk 0:01:02]} 26. Bd6 {[%clk 0:01:21]}  Nb6 {[%clk 0:01:02]} 27. Bf4 {[%clk 0:00:35]}  Qc6 {[%clk 0:00:58]} 28. Qd3 {[%clk 0:00:23]}  Rc8 {[%clk 0:00:56]} 29. Bd2 {[%clk 0:00:22]}  Nc4 {[%clk 0:00:53]} 30. Bc1 {[%clk 0:00:22]}  Nd6 {[%clk 0:00:53]} 31. Bb2 {[%clk 0:00:19]}  h5 {[%clk 0:00:51]} 32. Rbc1 {[%clk 0:00:16]}  Bf6 {[%clk 0:00:41]} 33. Rc2 {[%clk 0:00:12]}  Nf5 {[%clk 0:00:41]} 34. Ree2 {[%clk 0:00:10]}  Kg7 {[%clk 0:00:41]} 35. Bc1 {[%clk 0:00:10]}  Qd7 {[%clk 0:00:33]} 36. Qf3 {[%clk 0:00:09]}  Rc4 {[%clk 0:00:32]} 37. g4 {[%clk 0:00:08]}  hxg4 {[%clk 0:00:31]} 38. hxg4 {[%clk 0:00:09]}  Nd6 {[%clk 0:00:29]} 39. Bh6+ {[%clk 0:00:09]}  Kxh6 {[%clk 0:00:27]} 40. Qxf6 {[%clk 0:00:10]}  Ne4 {[%clk 0:00:11]} 41. Rxe4 {[%clk 0:00:08]}  dxe4 {[%clk 0:00:11]} 42. f4 {[%clk 0:00:08]}  Qd5 {[%clk 0:00:00]} 43. Rh2+ {[%clk 0:00:04]} 1-0


[Site "https://www.chess.com"]

[Event "Titled Tuesday Blitz May 9 Late 2023"]
[White "Ladan, Nicholas"]
[Black "Sowa, Ryan"]
[WhiteFideId "30918855"]
[BlackFideId "30901693"]
[WhiteElo "2167"]
[BlackElo "2642"]
[Result "0-1"]
[Round "07"]
[TimeControl "180+2"]
[Date "2023.05.09"]
[WhiteClock "0:00:01"]
[BlackClock "0:00:07"]

1. d4 {[%clk 0:03:00]}  b6 {[%clk 0:02:50]} 2. Bf4 {[%clk 0:02:57]}  Bb7 {[%clk 0:02:48]} 3. f3 {[%clk 0:02:56]}  e6 {[%clk 0:02:47]} 4. e4 {[%clk 0:02:56]}  d5 {[%clk 0:02:47]} 5. Bd3 {[%clk 0:02:56]}  c5 {[%clk 0:02:46]} 6. Bxb8 {[%clk 0:02:47]}  Rxb8 {[%clk 0:02:43]} 7. Bb5+ {[%clk 0:02:47]}  Ke7 {[%clk 0:02:43]} 8. Nd2 {[%clk 0:02:43]}  f6 {[%clk 0:02:21]} 9. Ne2 {[%clk 0:02:38]}  Kf7 {[%clk 0:02:21]} 10. O-O {[%clk 0:02:32]}  Ne7 {[%clk 0:02:19]} 11. exd5 {[%clk 0:02:23]}  Nxd5 {[%clk 0:02:18]} 12. c4 {[%clk 0:02:24]}  Nb4 {[%clk 0:02:15]} 13. a3 {[%clk 0:02:20]}  Nc6 {[%clk 0:02:15]} 14. Bxc6 {[%clk 0:02:09]}  Bxc6 {[%clk 0:02:14]} 15. Ne4 {[%clk 0:02:04]}  cxd4 {[%clk 0:02:11]} 16. Kh1 {[%clk 0:01:46]}  e5 {[%clk 0:01:51]} 17. b4 {[%clk 0:01:44]}  f5 {[%clk 0:01:43]} 18. N4g3 {[%clk 0:01:40]}  g6 {[%clk 0:01:42]} 19. f4 {[%clk 0:01:19]}  d3 {[%clk 0:01:41]} 20. fxe5 {[%clk 0:01:19]}  dxe2 {[%clk 0:01:41]} 21. Qxe2 {[%clk 0:01:20]}  Bd7 {[%clk 0:01:23]} 22. Rad1 {[%clk 0:01:17]}  Qe8 {[%clk 0:01:23]} 23. Ne4 {[%clk 0:01:00]}  Be7 {[%clk 0:01:19]} 24. Rfe1 {[%clk 0:00:48]}  Be6 {[%clk 0:01:15]} 25. Nd6+ {[%clk 0:00:41]}  Bxd6 {[%clk 0:01:15]} 26. exd6 {[%clk 0:00:40]}  Qd7 {[%clk 0:01:11]} 27. c5 {[%clk 0:00:36]}  bxc5 {[%clk 0:01:08]} 28. bxc5 {[%clk 0:00:37]}  Rhc8 {[%clk 0:01:03]} 29. Qf3 {[%clk 0:00:16]}  Rxc5 {[%clk 0:00:58]} 30. Qh3 {[%clk 0:00:15]}  Kg8 {[%clk 0:00:51]} 31. Qe3 {[%clk 0:00:11]}  Rc6 {[%clk 0:00:30]} 32. Qxe6+ {[%clk 0:00:10]}  Qxe6 {[%clk 0:00:31]} 33. Rxe6 {[%clk 0:00:11]}  Rd8 {[%clk 0:00:32]} 34. h4 {[%clk 0:00:09]}  Rd7 {[%clk 0:00:32]} 35. Kh2 {[%clk 0:00:04]}  Kf7 {[%clk 0:00:33]} 36. Re7+ {[%clk 0:00:01]}  Rxe7 {[%clk 0:00:32]} 37. dxe7 {[%clk 0:00:02]}  Kxe7 {[%clk 0:00:33]} 38. Rd3 {[%clk 0:00:03]}  Rc4 {[%clk 0:00:21]} 39. Kg3 {[%clk 0:00:03]}  Rg4+ {[%clk 0:00:21]} 40. Kh3 {[%clk 0:00:04]}  a5 {[%clk 0:00:21]} 41. Rd5 {[%clk 0:00:03]}  a4 {[%clk 0:00:21]} 42. Ra5 {[%clk 0:00:02]}  Kf6 {[%clk 0:00:20]} 43. Ra6+ {[%clk 0:00:03]}  Kg7 {[%clk 0:00:20]} 44. Ra7+ {[%clk 0:00:03]}  Kh6 {[%clk 0:00:21]} 45. g3 {[%clk 0:00:04]}  Rc4 {[%clk 0:00:21]} 46. Ra6 {[%clk 0:00:03]}  Kg7 {[%clk 0:00:18]} 47. Ra7+ {[%clk 0:00:03]}  Kh6 {[%clk 0:00:19]} 48. Kg2 {[%clk 0:00:02]}  Kh5 {[%clk 0:00:19]} 49. Kh3 {[%clk 0:00:01]}  h6 {[%clk 0:00:18]} 50. Ra5 {[%clk 0:00:02]}  Rd4 {[%clk 0:00:17]} 51. Ra6 {[%clk 0:00:02]}  g5 {[%clk 0:00:16]} 52. hxg5 {[%clk 0:00:03]}  hxg5 {[%clk 0:00:17]} 53. Ra7 {[%clk 0:00:04]}  g4+ {[%clk 0:00:12]} 54. Kg2 {[%clk 0:00:04]}  Rd2+ {[%clk 0:00:12]} 55. Kf1 {[%clk 0:00:04]}  Rd3 {[%clk 0:00:13]} 56. Rxa4 {[%clk 0:00:04]}  Rxg3 {[%clk 0:00:13]} 57. Ra8 {[%clk 0:00:04]}  Rb3 {[%clk 0:00:13]} 58. a4 {[%clk 0:00:03]}  Kh4 {[%clk 0:00:13]} 59. a5 {[%clk 0:00:03]}  Kg3 {[%clk 0:00:13]} 60. a6 {[%clk 0:00:04]}  Ra3 {[%clk 0:00:14]} 61. a7 {[%clk 0:00:04]}  f4 {[%clk 0:00:14]} 62. Ke2 {[%clk 0:00:03]}  f3+ {[%clk 0:00:15]} 63. Ke1 {[%clk 0:00:03]}  Ra2 {[%clk 0:00:15]} 64. Rh8 {[%clk 0:00:01]}  Rxa7 {[%clk 0:00:14]} 65. Kd2 {[%clk 0:00:02]}  Re7 {[%clk 0:00:07]} 66. Re8 {[%clk 0:00:01]} 0-1


[Site "https://www.chess.com"]